[Event "German Bundesliga 2022-23"]
[Site "Germany"]
[Date "2022.10.22"]
[Round "1"]
[White "Harikrishna, Pentala"]
[Black "Brkic, Ante"]
[Result "1/2-1/2"]
[ECO "D38"]
[WhiteElo "2717"]
[BlackElo "2602"]
[Annotator "TA"]
[PlyCount "61"]
[EventDate "2022.10.21"]
[EventType "team-tourn"]
[EventCountry "GER"]
[SourceTitle "playchess.com"]
[Source "ChessBase"]
[SourceQuality "1"]
[TimeControl "40/6000+30:3000+30"]

{[%evp 12,61,19,16,28,7,15,14,27,14,20,2,7,-19,-10,-11,-11,-6,-6,-8,-7,-2,-10,-12,-17,-24,-16,-24,0,0,0,-2,0,-1,0,0,0,0,0,0,0,0,0,0,0,0,0,0,0,0,0,0]} 1. d4 {[%emt 0:00:04]} Nf6 {[%emt 0:00:07]} 2. c4 {[%emt 0:00:08]} e6 {[%emt 0:00:07]} 3. Nf3 {[%emt 0:00:06]} d5 {[%emt 0:00:05]} 4. Nc3 {[%emt 0:00:16]} Bb4 {[%emt 0:00:20]} 5. Qa4+ {[%emt 0:04:43]} Nc6 {[%emt 0:00:41]} 6. e3 {[%emt 0:00:20]} O-O {[%emt 0:00:09]} 7. Bd2 {[%emt 0:00:30]} a5 {[%emt 0:04:15] D38: Queen's Gambit Declined: Ragozin Defence (4 Nf3 Bb4).} 8. Qc2 {[%emt 0:09:33]} Ne7 {[%emt 0:02:18]} 9. a3 {[%emt 0:07:20]} Bxc3 {[%emt 0:00:31]} 10. Bxc3 {[%emt 0:00:28]} b6 {[%emt 0:00:22] [#]} 11. Nd2 $146 {[%emt 0:07:42]} ({Predecessor:} 11. cxd5 exd5 12. Bd3 Ba6 {½-½ (12) Iniyan,P (2556)-Pichot,A (2641) Tashkent 2022}) 11... Ba6 {[%emt 0:03:41]} 12. e4 {[%emt 0:03:49]} c5 {[%emt 0:11:17]} 13. cxd5 {[%emt 0:11:21]} Bxf1 {[%emt 0:04:49]} 14. Nxf1 {[%emt 0:06:34]} exd5 {[%emt 0:00:25]} 15. Ng3 {[%emt 0:00:12]} cxd4 {[%emt 0:43:58]} 16. Bxd4 {[%emt 0:01:14]} Rc8 {[%emt 0:08:32]} 17. Qe2 {[%emt 0:23:02]} Nxe4 {[%emt 0:01:59]} 18. Nxe4 {[%emt 0:00:46]} dxe4 {[%emt 0:00:05]} 19. Rd1 {[%emt 0:00:16][%cal Od4g7] [#] Strongly threatening Bxg7!} Qc7 {[%emt 0:04:33]} (19... Nd5 $5 {[%cal Rd5f4]}) 20. Qxe4 {[%emt 0:07:44] The position is equal.} Rfe8 {[%emt 0:00:17]} 21. O-O {[%emt 0:05:00]} Nc6 {[%emt 0:00:14]} 22. Qf3 {[%emt 0:03:11]} Nxd4 {[%emt 0:00:11]} 23. Rxd4 {[%emt 0:00:07]} Rcd8 {[%emt 0:01:28]} 24. Rxd8 {[%emt 0:02:52]} Rxd8 {[%emt 0:00:03]} 25. Rd1 {[%emt 0:04:58]} Rxd1+ {[%emt 0:00:43]} 26. Qxd1 $11 {[%emt 0:00:04] KQ-KQ} g6 {[%emt 0:02:08]} 27. g3 {[%emt 0:00:22]} Qc5 {[%emt 0:00:59]} 28. a4 {[%emt 0:02:38]} Kg7 {[%emt 0:00:20]} 29. b3 {[%emt 0:00:17]} h5 {[%emt 0:02:18]} 30. h4 {[%emt 0:01:05]} Kf6 {[%emt 0:00:50]} 31. Qd7 {[%emt 0:01:14] A balanced but interesting game.  Weighted Error Value: White=0.05 (flawless) /Black=0.02 (flawless)} 1/2-1/2

[Event "German Bundesliga 2022-23"]
[Site "Germany"]
[Date "2022.10.22"]
[Round "1"]
[White "Navara, David"]
[Black "McShane, Luke J"]
[Result "1-0"]
[ECO "E16"]
[WhiteElo "2676"]
[BlackElo "2653"]
[Annotator "TA"]
[PlyCount "69"]
[EventDate "2022.10.21"]
[EventType "team-tourn"]
[EventCountry "GER"]
[SourceTitle "playchess.com"]
[Source "ChessBase"]
[SourceQuality "1"]
[TimeControl "40/6000+30:3000+30"]

{[%evp 13,69,18,29,29,26,27,37,28,35,18,18,10,18,12,12,10,19,0,19,17,25,25,26,26,25,0,0,0,0,0,0,0,12,12,10,20,63,45,61,0,0,0,17,0,0,0,0,0,166,174,165,175,167,161,477,461,1908,1619]} 1. d4 {[%emt 0:00:02]} Nf6 {[%emt 0:00:06]} 2. c4 {[%emt 0:00:06]} e6 {[%emt 0:00:06]} 3. Nf3 {[%emt 0:00:04]} Bb4+ {[%emt 0:00:19]} 4. Bd2 {[%emt 0:00:04]} Qe7 {[%emt 0:00:17]} 5. g3 {[%emt 0:00:04]} Nc6 {[%emt 0:00:09]} 6. Bg2 {[%emt 0:00:03]} Bxd2+ {[%emt 0:00:55]} 7. Nbxd2 {[%emt 0:00:04]} d6 {[%emt 0:01:23]} 8. Nb1 $5 {[%emt 0:09:36][%mdl 4] A promising side line. E11: Bogo-Indian.} e5 {[%emt 0:05:39]} 9. Nc3 {[%emt 0:04:24] [#]} Bg4 $146 {[%emt 0:08:02]} ({Predecessor:} 9... O-O 10. O-O Bg4 11. d5 Nb8 12. Ne1 a5 13. f3 Bd7 14. Nd3 Na6 15. e4 c6 {½-½ (43) Saiyn,Z (2377)-Kesidis,O (2244) Moscow 2018}) 10. d5 {[%emt 0:00:39] White is slightly better.} Nb8 {[%emt 0:00:06]} 11. Qb3 {[%emt 0:04:43]} Bc8 {[%emt 0:07:32]} 12. O-O {[%emt 0:07:20]} O-O {[%emt 0:00:18]} 13. Nd2 {[%emt 0:04:15]} a5 {[%emt 0:02:14]} 14. Qc2 {[%emt 0:05:20]} Na6 {[%emt 0:01:01]} 15. a3 {[%emt 0:01:38][%cal Ba2a3,Ba3b4,Bb4b5,Bb5b6][%mdl 32]} Bd7 {[%emt 0:00:12]} 16. Rab1 {[%emt 0:01:19]} Nc5 {[%emt 0:02:44]} 17. b4 {[%emt 0:02:33]} axb4 {[%emt 0:00:30]} 18. axb4 {[%emt 0:00:07]} Na4 {[%emt 0:00:08]} 19. Nxa4 {[%emt 0:10:54]} Rxa4 {[%emt 0:04:39]} 20. b5 {[%emt 0:00:16]} Rfa8 {[%emt 0:00:55]} 21. b6 {[%emt 0:05:36]} Bg4 {[%emt 0:01:37]} 22. e4 {[%emt 0:09:45][%cal Oc4c5]} h5 {[%emt 0:18:55][%cal Oh5h4]} 23. h3 {[%emt 0:05:03]} Bc8 {[%emt 0:02:11][%cal Oh5h4]} 24. c5 {[%emt 0:00:20]} dxc5 {[%emt 0:04:40]} 25. Nc4 $1 {[%emt 0:00:33] White is more active.} Rb4 {[%emt 0:23:47][%cal Oh5h4]} 26. Rxb4 {[%emt 0:06:47]} (26. Rfd1 $14) 26... cxb4 $11 {[%emt 0:00:05]} 27. Qb2 {[%emt 0:01:55]} c5 {[%emt 0:07:38]} 28. Ra1 {[%emt 0:12:08]} Rxa1+ {[%emt 0:04:13]} 29. Qxa1 {[%emt 0:00:17]} Nd7 {[%emt 0:00:06]} 30. h4 {[%emt 0:02:31][%cal Bh3h4,Bh4g5][%mdl 32]} g5 $2 {[%emt 0:07:33] [#]} (30... g6 $11 {and Black stays safe.}) 31. Qa8 $18 {[%emt 0:01:25]} Qd8 {[%emt 0:00:47]} 32. hxg5 {[%emt 0:00:24]} b3 {[%emt 0:01:23]} 33. Bf1 {[%emt 0:07:12]} Nxb6 $2 {[%emt 0:03:55]} (33... Kh7 {is more resistant.} 34. Qa3 Qxg5 35. Qxb3 Qh6) 34. Nxb6 {[%emt 0:04:39]} b2 {[%emt 0:01:00]} (34... Qxb6 $142 35. Qxc8+ Kg7) 35. Nxc8 {[%emt 0:00:16] Weighted Error Value: White=0.07 (flawless) /Black=0.32} ({But not} 35. Qxc8 $2 Qxc8 36. Nxc8 b1=Q $19) ({Weaker is} 35. Bd3 Qxb6 36. Qxc8+ Kg7 $18) 1-0

[Event "German Bundesliga 2022-23"]
[Site "Germany"]
[Date "2022.10.22"]
[Round "1"]
[White "Fressinet, Laurent"]
[Black "Nguyen, Thai Dai Van"]
[Result "1/2-1/2"]
[ECO "D37"]
[WhiteElo "2622"]
[BlackElo "2634"]
[Annotator "TA"]
[PlyCount "59"]
[EventDate "2022.10.21"]
[EventType "team-tourn"]
[EventCountry "GER"]
[SourceTitle "playchess.com"]
[Source "ChessBase"]
[SourceQuality "1"]
[TimeControl "40/6000+30:3000+30"]

{[%evp 12,59,12,11,12,6,12,0,0,0,0,-7,2,0,0,0,15,11,40,11,15,22,0,6,13,0,26,30,40,18,23,23,29,29,49,54,54,34,41,49,47,33,46,63,58,62,92,-1,-1,-2]} 1. d4 {[%emt 0:00:06]} Nf6 {[%emt 0:00:49]} 2. c4 {[%emt 0:00:09]} e6 {[%emt 0:00:07]} 3. Nf3 {[%emt 0:00:07]} d5 {[%emt 0:00:56]} 4. Nc3 {[%emt 0:00:13]} Be7 {[%emt 0:00:49]} 5. Bf4 {[%emt 0:00:50]} O-O {[%emt 0:00:20]} 6. e3 {[%emt 0:00:05]} Nbd7 {[%emt 0:00:12]} 7. Be2 {[%emt 0:00:40]} dxc4 {[%emt 0:00:48] D37: Queen's Gambit Declined: 5 Bf4.} 8. O-O {[%emt 0:00:49]} Nb6 {[%emt 0:01:29]} 9. a4 {[%emt 0:01:32][%mdl 1024] White has compensation.} (9. Qc2 {with more complications.} Nfd5 10. Be5 Bd6 11. Ne4) 9... a5 {[%emt 0:07:12]} 10. e4 {[%emt 0:03:33]} Bb4 {[%emt 0:35:01]} 11. Qc2 {[%emt 0:03:36] [#]} h6 $146 {[%emt 0:00:06]} ({Predecessor:} 11... Ne8 12. Rfd1 Nd6 13. Nd2 h6 14. Bxd6 cxd6 15. Nxc4 Nxc4 16. Bxc4 Bd7 17. Na2 Qb6 {½-½ (32) Clowes,M (2357)-Fuzishawa,R (2353) ICCF email 2016}) 12. Rfd1 {[%emt 0:11:38]} Qe7 {[%emt 0:04:18]} 13. Ne5 {[%emt 0:16:10]} Bd6 {[%emt 0:03:54]} 14. Be3 {[%emt 0:19:29]} c5 {[%emt 0:10:09]} (14... Bd7 $5) 15. Nb5 {[%emt 0:14:59]} ({Much weaker is} 15. Bxc4 Bxe5 16. dxe5 Ng4 $15) (15. Nxf7 $5 Rxf7 16. e5 Bxe5 17. dxe5 $14) 15... cxd4 $1 {[%emt 0:00:18]} 16. Bxd4 {[%emt 0:00:07]} Bc5 {[%emt 0:00:07]} 17. Nxc4 {[%emt 0:01:40]} Nxc4 {[%emt 0:05:41]} 18. Qxc4 {[%emt 0:05:52]} Bxd4 {[%emt 0:01:12]} 19. Qxd4 {[%emt 0:01:25]} ({Much worse is} 19. Nxd4 Nxe4 20. Nf3 Nf6 $11) 19... Bd7 {[%emt 0:01:38]} 20. Qd6 {[%emt 0:06:00]} (20. e5 $5 {[%cal Re5f6]} Nd5 21. Nc7 $1 $14) 20... Qxd6 {[%emt 0:01:00]} 21. Nxd6 {[%emt 0:00:06]} Bc6 {[%emt 0:00:16]} 22. f3 {[%emt 0:00:22]} Rfd8 {[%emt 0:09:09]} 23. Bb5 {[%emt 0:00:58]} Bxb5 {[%emt 0:00:43]} 24. axb5 {[%emt 0:01:23]} Rd7 {[%emt 0:00:07]} 25. Nc4 {[%emt 0:01:27]} a4 {[%emt 0:07:11]} 26. Kf1 {[%emt 0:03:10]} Rxd1+ {[%emt 0:07:12]} 27. Rxd1 {[%emt 0:00:03]} Rc8 {[%emt 0:00:25]} 28. Rd4 {[%emt 0:03:10]} Nd7 {[%emt 0:02:21][%cal Oc8c5] [#]} 29. Ne3 {[%emt 0:04:21]} ({Don't play} 29. Rxd7 $6 Rxc4 30. Rxb7 Rc2 $11) (29. Nd6 $1 $16 {[%cal Rd6c8]} Rc1+ 30. Ke2) 29... Nb6 $11 {[%emt 0:02:16]} 30. Rd6 {[%emt 0:07:04] Weighted Error Value: White=0.09 (flawless) /Black=0.05 (flawless)} 1/2-1/2

[Event "German Bundesliga 2022-23"]
[Site "Germany"]
[Date "2022.10.22"]
[Round "1"]
[White "L'Ami, Erwin"]
[Black "Stevic, Hrvoje"]
[Result "1-0"]
[ECO "D20"]
[WhiteElo "2617"]
[BlackElo "2565"]
[Annotator "TA"]
[PlyCount "91"]
[EventDate "2022.10.21"]
[EventType "team-tourn"]
[EventCountry "GER"]
[SourceTitle "playchess.com"]
[Source "ChessBase"]
[SourceQuality "1"]
[TimeControl "40/6000+30:3000+30"]

{[%evp 10,91,38,68,38,3,8,-1,127,36,69,50,86,92,175,168,162,144,155,154,165,154,146,140,150,85,92,87,89,98,129,133,134,129,132,140,138,135,133,91,91,92,93,93,169,159,154,150,168,168,168,138,180,180,180,173,179,168,247,247,243,216,224,220,228,219,298,275,268,272,271,271,257,189,633,618,2178,1956,5418,4134,29975,29975,29984,29985]} 1. d4 {[%emt 0:00:04]} d5 {[%emt 0:00:05]} 2. c4 {[%emt 0:00:12]} dxc4 {[%emt 0:00:07]} 3. e4 {[%emt 0:00:10]} e5 {[%emt 0:00:32]} 4. Nf3 {[%emt 0:00:33]} exd4 {[%emt 0:00:12]} 5. Bxc4 {[%emt 0:00:10]} Nc6 {[%emt 0:00:08]} 6. O-O {[%emt 0:00:26]} Be6 {[%emt 0:00:05] D20: Queen's Gambit Accepted: 3 e3 and 3 e4.} 7. Nbd2 {[%emt 0:01:11] 7.Bxe6 is the modern continuation.} Qf6 {[%emt 0:02:03]} 8. Qa4 $5 {[%emt 0:01:20][%mdl 4] [#] Exploring less charted territory.} Bc5 $146 {[%emt 0:17:34]} (8... O-O-O $11) ({Predecessor:} 8... O-O-O 9. Bb5 Nge7 10. Nb3 Bg4 11. Bg5 Qg6 12. Nbd2 f6 13. Bf4 Bxf3 14. Nxf3 Qxe4 {½-½ (22) Cermak,J (2223)-Preussner,M (2111) ICCF email 2021}) 9. Bxe6 {[%emt 0:26:35]} ({Better is} 9. b4 $1 $16 {[%cal Rb4c5]} Bb6 10. b5) 9... Qxe6 $14 {[%emt 0:19:50]} 10. b4 {[%emt 0:05:12]} Bb6 {[%emt 0:01:11]} 11. b5 {[%emt 0:04:27]} Ne5 {[%emt 0:00:27]} (11... Nce7 $16) 12. Nxe5 $1 $18 {[%emt 0:04:11]} Qxe5 {[%emt 0:00:05]} 13. Nc4 $1 {[%emt 0:01:03]} Qe6 {[%emt 0:12:00]} (13... Qxe4 $2 14. Nxb6 cxb6 15. Ba3 $18) 14. Nxb6 {[%emt 0:11:06]} Qxb6 {[%emt 0:00:24]} 15. Bb2 {[%emt 0:01:32]} Ne7 {[%emt 0:01:18][%cal Bg8e7,Be7c6,Bc6a7,Ba7b5][%mdl 32]} 16. Bxd4 {[%emt 0:02:43]} Qe6 {[%emt 0:00:09]} 17. b6+ {[%emt 0:02:50]} (17. Bxg7 Rg8 $11) (17. f4 $142) 17... Nc6 $16 {[%emt 0:03:07]} 18. bxa7 {[%emt 0:03:34] Bc5 is the strong threat. White has more active pieces.} O-O {[%emt 0:00:32] [#]} 19. Be3 $1 {[%emt 0:02:19]} b5 {[%emt 0:37:29]} 20. Qxb5 {[%emt 0:07:59] Hoping for Qb7.} Nxa7 {[%emt 0:00:37]} 21. Qd5 {[%emt 0:01:52]} Qxd5 {[%emt 0:05:01]} 22. exd5 {[%emt 0:00:18]} Rfd8 {[%emt 0:00:01]} 23. Rfc1 {[%emt 0:02:20]} Rxd5 {[%emt 0:00:42]} 24. Rxc7 {[%emt 0:01:11]} Nb5 {[%emt 0:07:48]} 25. Rc5 {[%emt 0:05:19]} Rxc5 {[%emt 0:00:05]} 26. Bxc5 {[%emt 0:00:09][%mdl 4096] Endgame KRB-KRN} f6 {[%emt 0:00:01]} (26... Na3 $16 {is a better defense.}) 27. a4 $18 {[%emt 0:02:01][%cal Ba2a4,Ba4a5][%mdl 32]} Kf7 {[%emt 0:00:25]} 28. g3 {[%emt 0:02:08]} Nc3 {[%emt 0:00:34]} 29. a5 {[%emt 0:00:11]} Ra6 {[%emt 0:00:02]} 30. Bb4 {[%emt 0:01:34]} Ne2+ {[%emt 0:01:03]} 31. Kf1 {[%emt 0:00:51]} Nd4 {[%emt 0:00:03]} 32. Bc3 {[%emt 0:00:23]} Nb5 {[%emt 0:01:31]} 33. Bd2 {[%emt 0:03:37]} h5 {[%emt 0:00:17]} (33... Nd4 $142) 34. Rb1 {[%emt 0:01:02]} Nd6 {[%emt 0:00:17]} 35. h4 {[%emt 0:01:46]} Ke6 {[%emt 0:00:31]} 36. Ke2 {[%emt 0:02:26]} Kd5 {[%emt 0:01:01]} 37. Kd3 {[%emt 0:02:02]} Ne4 {[%emt 0:00:15]} 38. Rb5+ {[%emt 0:01:33]} Kc6 {[%emt 0:00:07]} 39. Rf5 {[%emt 0:03:31]} ({But not} 39. Rxh5 Nxf2+ 40. Kd4 Ra7 41. Rc5+ Kb7 $18) 39... g6 {[%emt 0:00:46]} 40. Kxe4 {[%emt 0:03:36]} gxf5+ {[%emt 0:00:04]} 41. Kxf5 {[%emt 0:50:08] KR-KB} Kd5 $2 {[%emt 0:18:24] [#]} (41... Kd7 42. Kg6 Ke6) 42. g4 $1 {[%emt 0:00:00]} hxg4 {[%emt 0:03:04]} 43. h5 {[%emt 0:00:00][%cal Bh4h5,Bh5h6,Bh6h7][%mdl 32] Threatens to win with h6.} Re6 {[%emt 0:14:39]} 44. h6 {[%emt 0:00:00] Intending h7 and mate.} Re2 {[%emt 0:01:20]} 45. h7 {[%emt 0:00:00]} Rxf2+ {[%emt 0:00:06]} 46. Bf4 {[%emt 0:00:00] Weighted Error Value: White=0.09 (flawless) /Black=0.56} ({Worse is} 46. Kxg4 Rh2 47. Kf5 Rxh7 $11) 1-0

[Event "German Bundesliga 2022-23"]
[Site "Germany"]
[Date "2022.10.22"]
[Round "1"]
[White "Markus, Robert"]
[Black "Ragger, Markus"]
[Result "1/2-1/2"]
[ECO "A48"]
[WhiteElo "2615"]
[BlackElo "2632"]
[Annotator "RC"]
[PlyCount "50"]
[EventDate "2022.10.21"]
[EventType "team-tourn"]
[EventCountry "GER"]
[SourceTitle "playchess.com"]
[Source "ChessBase"]
[SourceQuality "1"]
[TimeControl "40/6000+30:3000+30"]

1. d4 Nf6 2. Nf3 g6 3. Bf4 Bg7 4. c3 O-O 5. Nbd2 d6 6. e4 Nbd7 7. Be2 b6 8. O-O Bb7 9. Qc2 e5 10. Bg3 {[%emt 0:17:49]} Nh5 {[%emt 0:39:24]} 11. Bh4 {[%emt 0:00:21]} Bf6 {[%emt 0:00:05]} 12. Bxf6 {[%emt 0:00:10]} Qxf6 {[%emt 0:01:11]} 13. g3 {[%emt 0:03:00]} Ng7 {[%emt 0:03:47]} 14. a4 {[%emt 0:06:54]} a5 {[%emt 0:04:31]} 15. Rfe1 {[%emt 0:11:57]} Rfd8 {[%emt 0:07:01]} 16. Rad1 {[%emt 0:02:21]} Ne6 {[%emt 0:05:45]} 17. Bf1 {[%emt 0:09:32]} Ng5 {[%emt 0:07:11]} 18. Nxg5 {[%emt 0:09:43]} Qxg5 {[%emt 0:00:02]} 19. Bg2 {[%emt 0:01:16]} Nf8 {[%emt 0:06:28]} 20. Nc4 {[%emt 0:04:49]} Re8 {[%emt 0:04:41]} 21. Na3 {[%emt 0:05:50]} Ne6 {[%emt 0:02:56]} 22. Nb5 {[%emt 0:01:07]} Qe7 {[%emt 0:01:00]} 23. d5 {[%emt 0:08:25]} Nf8 {[%emt 0:01:20]} 24. b4 {[%emt 0:01:18]} Bc8 {[%emt 0:02:47]} 25. Bf1 {[%emt 0:04:30]} h5 {[%emt 0:06:46]} 1/2-1/2

[Event "German Bundesliga 2022-23"]
[Site "Germany"]
[Date "2022.10.22"]
[Round "1"]
[White "Andersen, Mads"]
[Black "Kovacevic, Aleksandar"]
[Result "1-0"]
[ECO "B90"]
[WhiteElo "2604"]
[BlackElo "2471"]
[Annotator "ChessBase"]
[PlyCount "103"]
[EventDate "2022.10.21"]
[EventType "team-tourn"]
[EventCountry "GER"]
[SourceTitle "playchess.com"]
[Source "ChessBase"]
[SourceQuality "1"]
[TimeControl "40/6000+30:3000+30"]

1. e4 {[%emt 0:00:09]} c5 {[%emt 0:01:49]} 2. Nf3 {[%emt 0:00:18]} d6 {[%emt 0:00:10]} 3. d4 {[%emt 0:00:09]} cxd4 {[%emt 0:00:05]} 4. Nxd4 {[%emt 0:00:06]} Nf6 {[%emt 0:00:04]} 5. Nc3 {[%emt 0:00:11]} a6 {[%emt 0:00:05]} 6. f3 {[%emt 0:00:10]} e5 {[%emt 0:02:46]} 7. Nb3 {[%emt 0:00:13]} Be6 {[%emt 0:00:27]} 8. Be3 {[%emt 0:00:14]} Be7 {[%emt 0:00:40]} 9. Qd2 {[%emt 0:00:29]} h5 {[%emt 0:01:42]} 10. Be2 {[%emt 0:00:47]} Nbd7 {[%emt 0:01:10]} 11. Nd5 {[%emt 0:02:03]} Nxd5 {[%emt 0:05:10]} 12. exd5 {[%emt 0:00:17]} Bf5 {[%emt 0:00:02]} 13. O-O {[%emt 0:00:30]} h4 {[%emt 0:12:28]} 14. Na5 {[%emt 0:04:52]} Qc7 {[%emt 0:10:25]} 15. c4 {[%emt 0:01:34]} O-O {[%emt 0:05:35]} 16. b4 {[%emt 0:09:48]} h3 {[%emt 0:20:04]} 17. g3 {[%emt 0:05:56]} Rac8 {[%emt 0:00:40]} 18. Rac1 {[%emt 0:01:33]} Qb8 {[%emt 0:10:01]} 19. Rfd1 {[%emt 0:08:55]} Bd8 {[%emt 0:02:11]} 20. Nb3 {[%emt 0:00:35]} b6 {[%emt 0:01:59]} 21. c5 {[%emt 0:06:46]} dxc5 {[%emt 0:03:35]} 22. Bxa6 {[%emt 0:03:37]} Rc7 {[%emt 0:00:14]} 23. bxc5 {[%emt 0:00:25]} Nxc5 {[%emt 0:00:50]} 24. Nxc5 {[%emt 0:01:50]} bxc5 {[%emt 0:00:08]} 25. Bf1 {[%emt 0:16:24]} Rb7 {[%emt 0:04:02]} 26. Qc3 {[%emt 0:15:45]} e4 {[%emt 0:17:03]} 27. fxe4 {[%emt 0:05:09]} Bxe4 {[%emt 0:01:36]} 28. Bxh3 {[%emt 0:01:12]} Re8 {[%emt 0:06:14]} 29. d6 {[%emt 0:03:54]} Bf6 {[%emt 0:03:07]} 30. Qxc5 {[%emt 0:00:44]} Rb2 {[%emt 0:00:24]} 31. d7 {[%emt 0:11:04]} Rd8 {[%emt 0:00:03]} 32. Qa5 {[%emt 0:00:20]} Rc2 {[%emt 0:01:06]} 33. Rxc2 {[%emt 0:01:49]} Bxc2 {[%emt 0:00:02]} 34. Rc1 {[%emt 0:00:20]} Bd3 {[%emt 0:00:49]} 35. a4 {[%emt 0:04:28]} Qb7 {[%emt 0:00:26]} 36. Rc8 {[%emt 0:01:15]} Qb1+ {[%emt 0:00:37]} 37. Kf2 {[%emt 0:00:10]} Qb2+ {[%emt 0:00:37]} 38. Qd2 {[%emt 0:00:15]} Qb1 {[%emt 0:00:08]} 39. Qa5 {[%emt 0:00:42]} Qb2+ {[%emt 0:00:24]} 40. Qd2 {[%emt 0:00:09]} Qb1 {[%emt 0:00:03]} 41. a5 {[%emt 0:12:45]} Kh7 {[%emt 0:05:43]} 42. Qe1 {[%emt 0:01:39]} Qb5 {[%emt 0:09:11]} 43. Qd1 {[%emt 0:07:56]} g6 {[%emt 0:19:22]} 44. Qf3 {[%emt 0:01:25]} Qb2+ {[%emt 0:04:24]} 45. Kg1 {[%emt 0:00:53]} Kg7 {[%emt 0:04:11]} 46. Qf2 {[%emt 0:09:52]} Qa1+ {[%emt 0:06:36]} 47. Rc1 {[%emt 0:00:48]} Qa3 {[%emt 0:01:42]} 48. Rd1 {[%emt 0:02:34]} Qb3 {[%emt 0:03:22]} 49. Qd2 {[%emt 0:02:08]} Bc2 {[%emt 0:00:41]} 50. Rc1 {[%emt 0:00:00]} Bd3 {[%emt 0:00:00]} 51. Rd1 {[%emt 0:00:00]} Bc2 {[%emt 0:00:00]} 52. Rf1 {[%emt 0:00:00]} 1-0

[Event "German Bundesliga 2022-23"]
[Site "Germany"]
[Date "2022.10.22"]
[Round "1"]
[White "Fridman, Daniel"]
[Black "Efimenko, Zahar"]
[Result "1/2-1/2"]
[ECO "E64"]
[WhiteElo "2603"]
[BlackElo "2599"]
[Annotator "TA"]
[PlyCount "43"]
[EventDate "2022.10.21"]
[EventType "team-tourn"]
[EventCountry "GER"]
[SourceTitle "playchess.com"]
[Source "ChessBase"]
[SourceQuality "1"]
[TimeControl "40/6000+30:3000+30"]

{[%evp 15,43,21,13,16,14,25,12,-14,-12,-14,-13,-12,-13,-14,-6,-5,0,0,0,0,4,0,0,0,0,0,0,0,0,0]} 1. Nf3 {[%emt 0:00:03]} Nf6 {[%emt 0:01:46]} 2. g3 {[%emt 0:00:34]} g6 {[%emt 0:00:59]} 3. Bg2 {[%emt 0:00:06]} Bg7 {[%emt 0:00:11]} 4. d4 {[%emt 0:00:06]} O-O {[%emt 0:00:47]} 5. c4 {[%emt 0:00:07]} d6 {[%emt 0:00:50]} 6. Nc3 {[%emt 0:02:50]} c5 {[%emt 0:00:49]} 7. dxc5 {[%emt 0:16:06]} dxc5 {[%emt 0:00:49]} 8. Qxd8 {[%emt 0:00:06]} Rxd8 {[%emt 0:00:02]} 9. Be3 {[%emt 0:00:07] E64: King's Indian: Fianchetto: 6...c5 7 d5.} Nc6 {[%emt 0:13:41]} 10. Bxc5 {[%emt 0:08:37]} Be6 {[%emt 0:01:56]} 11. Rc1 {[%emt 0:13:22] The position is equal.} Bxc4 {[%emt 0:08:56]} 12. Nd2 {[%emt 0:03:37]} Bd5 {[%emt 0:02:23] [#]} 13. Nxd5 $146 {[%emt 0:13:15]} ({Predecessor:} 13. e4 Be6 14. f4 Rac8 15. Nb3 b6 16. Ba3 Ng4 17. Nd5 Bxd5 18. exd5 Nd4 19. Rxc8 Rxc8 20. Nxd4 Bxd4 {0-1 (25) Marciniak,L (1811)-Owoc,J (1738) Jastrzebia Gora 2022}) 13... Nxd5 {[%emt 0:02:27]} 14. Nc4 {[%emt 0:01:32]} Rac8 {[%emt 0:08:37]} 15. O-O {[%emt 0:03:46]} Ncb4 {[%emt 0:22:30][%cal Bc6b4,Bb4a2,Ba2c3][%mdl 32]} 16. Bxa7 {[%emt 0:08:41]} Nxa2 {[%emt 0:01:45]} 17. Rcd1 {[%emt 0:00:20]} b5 {[%emt 0:08:21]} 18. Na3 {[%emt 0:11:43]} Bxb2 {[%emt 0:02:03] [#] ...Ndc3 is the strong threat.} 19. Nxb5 {[%emt 0:00:37]} Ndc3 {[%emt 0:01:38]} 20. Nxc3 {[%emt 0:00:08]} Nxc3 {[%emt 0:00:17]} 21. Rxd8+ {[%emt 0:00:07]} Rxd8 {[%emt 0:00:04]} 22. Re1 {[%emt 0:02:02] An uneventful encounter.  Weighted Error Value: White=0.02 (flawless) /Black=0.01 (flawless)} 1/2-1/2